bitfinex/quotes_SOLUSD_20240829
["timestamp","ask_amount","ask_price","bid_price","bid_amount"]
[1724935022911,6.3892,146.19,146.11,20.0]
[1724935023115,6.3892,146.19,146.12,0.56549906]
[1724935023533,6.3892,146.19,146.13,0.68064237]
[1724935023714,6.3892,146.19,146.13,20.68064237]
[1724935023912,6.3892,146.19,146.13,20.0]
[1724935024119,15.4935,146.21,146.14,77.20445461]
[1724935024333,15.4935,146.21,146.15,20.0]
[1724935024531,6.5205,146.22,146.15,20.0]
[1724935024738,15.3183,146.24,146.16,76.51575606]
[1724935024932,15.3183,146.24,146.17,20.0]
[1724935025533,22.1564,146.24,146.15,20.0]
[1724935025744,53.67215606,146.24,146.13,20.0]
[1724935026847,45.25098,146.23,146.13,20.0]
[1724935027024,6.2293,146.22,146.13,20.0]
[1724935027219,45.12549,146.21,146.13,20.0]
[1724935027441,0.12549,146.2,146.13,20.0]
[1724935027950,0.12549,146.2,146.12,31.51575606]
[1724935029352,0.12549,146.2,146.13,20.0]
[1724935029353,6.96539,146.2,146.13,20.0]
[1724935029547,60.44379,146.19,146.11,20.0]
[1724935029725,0.12549,146.18,146.11,20.0]
[1724935031867,15.44379,146.19,146.12,31.51575606]
[1724935032044,15.44379,146.19,146.13,20.0]
[1724935032241,15.3183,146.19,146.13,20.0]
[1724935033558,15.3183,146.19,146.14,31.51575606]
[1724935033735,15.3183,146.19,146.15,20.0]
[1724935034154,15.3183,146.19,146.16,12.6059407]
[1724935034346,22.1414,146.22,146.16,12.6059407]
[1724935034549,22.1414,146.22,146.15,20.0]
[1724935034750,0.12549,146.21,146.15,20.0]
[1724935034937,45.25098,146.21,146.15,20.0]
[1724935035271,45.25098,146.21,146.15,21.36598757]
[1724935037040,45.25098,146.21,146.15,20.0]
[1724935038351,45.25098,146.21,146.14,12.6059407]
[1724935038950,64.6963207,146.21,146.12,12.6059407]
[1724935039151,6.84,146.2,146.13,20.0]
[1724935039342,45.25098,146.19,146.13,20.0]
[1724935039939,45.25098,146.19,146.06,21.86504246]
[1724935040145,57.8569207,146.19,146.1,12.6059407]
[1724935040436,64.6977207,146.19,146.1,12.6059407]
[1724935040650,21.6198,146.18,146.1,12.6059407]
[1724935040836,45.25098,146.17,146.1,12.6059407]
[1724935041452,45.25098,146.17,146.11,20.0]
[1724935042058,52.09248,146.17,146.06,15.0072]
[1724935042252,52.09248,146.17,146.09,12.6059407]
[1724935042446,6.8418,146.16,146.09,12.6059407]
[1724935042637,45.25098,146.15,146.09,12.6059407]
[1724935042842,0.25098,146.14,146.09,12.6059407]
[1724935043051,0.25098,146.14,146.07,12.6059407]
[1724935044456,0.25098,146.14,146.09,12.6059407]
[1724935046467,0.12549,146.14,146.09,12.6059407]
[1724935047346,21.6198,146.18,146.1,20.0]
[1724935047545,45.25098,146.17,146.1,20.0]
[1724935048077,45.25098,146.17,146.1,19.5]
[1724935048755,45.25098,146.17,146.11,12.6059407]
[1724935050462,45.25098,146.17,146.1,19.5]
[1724935051564,45.25098,146.17,146.11,12.6059407]
[1724935051739,0.25098,146.17,146.11,12.6059407]
[1724935054368,0.25098,146.17,146.12,20.0]
[1724935054566,0.12549,146.17,146.12,20.0]
[1724935054772,21.6198,146.18,146.13,12.6059407]
[1724935056171,0.12549,146.17,146.13,12.6059407]
[1724935056351,0.25098,146.17,146.13,12.6059407]
[1724935056955,0.25098,146.17,146.11,12.6059407]
[1724935057271,45.25098,146.17,146.12,20.0]
[1724935058262,45.25098,146.17,146.11,12.6059407]
[1724935063853,45.25098,146.17,146.09,12.6059407]
[1724935064060,45.25098,146.17,146.1,20.0]
[1724935064459,45.25098,146.17,146.11,12.6059407]
[1724935066052,64.6986207,146.17,146.1,20.0]
[1724935066289,6.8418,146.16,146.09,12.6059407]
[1724935066452,45.25098,146.15,146.09,12.6059407]
[1724935067576,45.25098,146.15,146.07,12.6059407]
[1724935067781,45.25098,146.15,146.08,20.0]
[1724935068958,45.25098,146.15,146.09,12.6059407]
[1724935069579,0.25098,146.15,146.09,12.6059407]
[1724935069767,0.25098,146.14,146.09,12.6059407]
[1724935069963,45.25098,146.16,146.09,12.6059407]
[1724935070854,52.09278,146.16,146.08,20.0]
[1724935071055,52.09278,146.16,146.08,12.6059407]
[1724935071259,52.09278,146.16,146.09,20.0]
[1724935071953,45.25098,146.16,146.09,20.0]
[1724935072155,45.25098,146.16,146.09,20.98722904]
[1724935072552,21.6198,146.18,146.1,12.6059407]
[1724935074174,45.25098,146.17,146.1,12.6059407]
[1724935075581,64.6982207,146.17,146.09,20.0]
[1724935075880,56.8418,146.16,146.06,23.1904652]
[1724935076090,45.25098,146.15,146.09,12.6059407]
[1724935076377,0.25098,146.14,146.1,20.0]
[1724935076568,57.8569207,146.17,146.1,20.0]
[1724935077379,45.25098,146.17,146.1,20.0]
[1724935079983,45.25098,146.17,146.11,12.6059407]
[1724935080890,52.09238,146.17,146.1,20.0]
[1724935081061,57.8569207,146.17,146.07,12.6059407]
[1724935081390,6.8418,146.16,146.08,20.0]
[1724935081566,45.25098,146.15,146.08,20.0]
[1724935081962,52.09328,146.15,146.08,20.0]
[1724935082185,6.8427,146.14,146.05,15.0235]
[1724935082381,45.25098,146.13,146.07,12.6059407]
[1724935082984,0.25098,146.13,146.07,12.6059407]
[1724935084686,0.25098,146.13,146.08,1.36896567]
[1724935084885,0.25098,146.13,146.07,13.97488271]
[1724935085466,0.25098,146.13,146.07,12.6059407]
[1724935085786,0.25098,146.13,146.09,12.6059407]
[1724935085983,50.0,146.1,145.98,6.6369]
[1724935086188,19.4525407,146.06,146.02,7.15936776]
[1724935086366,0.12549,146.05,145.96,12.6059407]
[1724935087290,0.25098,146.05,145.96,12.6059407]
[1724935087994,0.25098,146.05,145.95,7.08019838]
[1724935087995,0.25098,146.05,145.98,12.6059407]
[1724935088193,0.12549,146.05,145.99,20.0]
[1724935088886,12.6059407,146.08,146.0,12.6059407]
[1724935089089,0.12549,146.07,146.0,12.6059407]
[1724935089389,21.3479,146.13,146.04,12.6059407]
[1724935089588,21.3479,146.13,146.06,12.6059407]
[1724935089890,21.3479,146.13,146.05,12.6059407]
[1724935090068,21.3479,146.13,146.06,20.0]
[1724935090275,28.9883,146.17,146.07,31.55710823]
[1724935090476,28.9883,146.17,146.08,20.0]
[1724935091089,60.54540823,146.17,146.08,20.0]
[1724935091270,60.54540823,146.17,146.06,20.0]
[1724935091794,28.9883,146.17,146.07,31.55710823]
[1724935092087,6.8423,146.15,146.06,20.0]
[1724935092293,88.39940823,146.15,146.03,31.55710823]
[1724935092594,88.39940823,146.15,146.06,20.0]
[1724935092779,45.12549,146.14,146.06,20.0]
[1724935092979,0.12549,146.13,146.06,20.0]
[1724935093186,0.12549,146.13,146.04,20.0]
[1724935093601,0.12549,146.13,146.05,31.55710823]
[1724935093891,0.12549,146.13,146.06,20.0]
[1724935099295,0.12549,146.14,146.07,31.55710823]
[1724935099600,22.1469,146.17,146.09,31.55710823]
[1724935100396,29.2668,146.21,146.11,31.55710823]
[1724935100788,29.2668,146.21,146.12,20.0]
[1724935101693,6.8399,146.2,146.12,20.0]
[1724935101893,56.8405,146.19,146.09,31.55710823]
[1724935102204,6.8403,146.2,146.1,20.0]
[1724935102379,103.98440823,146.21,146.1,20.0]
[1724935102785,45.25098,146.2,146.1,20.0]
[1724935103823,50.0,146.19,146.1,20.0]
[1724935104008,45.25098,146.18,146.07,31.55710823]
[1724935104187,45.25098,146.18,146.08,20.0]
[1724935104603,6.8418,146.16,146.08,20.0]
[1724935104803,45.25098,146.15,146.08,20.0]
[1724935105213,0.25098,146.15,146.08,20.0]
[1724935106323,29.2668,146.21,146.11,31.55710823]
[1724935106618,29.2668,146.21,146.13,31.55710823]
[1724935106824,29.2668,146.21,146.11,31.55710823]
[1724935107001,6.8409,146.18,146.09,31.55710823]
[1724935107194,6.8404,146.19,146.09,31.55710823]
[1724935107422,6.8404,146.19,146.1,20.0]
[1724935108018,0.25098,146.18,146.1,20.0]
[1724935108593,45.25098,146.19,146.11,31.55710823]
[1724935108916,52.09148,146.19,146.12,20.0]
[1724935109218,0.25098,146.19,146.12,20.0]
[1724935109414,22.5952,146.25,146.16,31.55710823]
[1724935109591,72.5952,146.25,146.17,20.0]
[1724935109992,22.5952,146.25,146.17,20.0]
[1724935111418,29.4329,146.25,146.17,20.0]
[1724935111621,0.25098,146.24,146.17,20.0]
[1724935111991,22.5952,146.25,146.17,20.0]
[1724935112606,22.5952,146.25,146.18,31.55710823]
[1724935112807,22.5952,146.25,146.19,20.0]
[1724935113317,0.12549,146.24,146.19,20.0]
[1724935113720,45.12549,146.24,146.16,31.55710823]
[1724935113893,6.8386,146.23,146.14,31.55710823]
[1724935114096,45.25098,146.24,146.16,31.55710823]
[1724935114624,45.25098,146.24,146.13,22.4464]
[1724935114802,6.839,146.22,146.14,31.55710823]
[1724935115115,0.12549,146.21,146.16,31.55710823]
[1724935115416,52.08918,146.24,146.16,31.55710823]
[1724935119721,52.08918,146.24,146.17,20.0]
[1724935120717,45.25098,146.24,146.14,31.55710823]
[1724935120923,0.25098,146.24,146.16,31.55710823]
[1724935121119,22.5952,146.25,146.18,31.55710823]
[1724935121311,21.7722,146.28,146.2,31.55710823]
[1724935121713,21.7722,146.28,146.21,20.0]
[1724935123844,0.25098,146.27,146.21,20.0]
[1724935124900,0.12549,146.27,146.21,20.0]
[1724935125126,21.7722,146.28,146.21,20.0]
[1724935126022,0.12549,146.29,146.22,31.55710823]
[1724935126331,45.25098,146.3,146.22,31.55710823]
[1724935126514,52.08628,146.3,146.22,31.55710823]
[1724935126916,6.8359,146.29,146.21,20.0]
[1724935127138,52.08718,146.28,146.2,31.55710823]
[1724935127303,45.25098,146.3,146.21,20.0]
[1724935127619,22.6408,146.31,146.22,31.55710823]
[1724935127816,6.8356,146.3,146.22,31.55710823]
[1724935128218,6.8356,146.3,146.21,20.0]
[1724935128916,0.25098,146.29,146.21,20.0]
[1724935129518,6.8362,146.28,146.21,20.0]
[1724935130204,7.08668,146.29,146.21,20.0]
[1724935130902,6.8366,146.28,146.21,20.0]
[1724935131205,52.08758,146.27,146.21,20.0]
[1724935131522,0.12549,146.29,146.22,31.55710823]
[1724935131698,0.12549,146.3,146.22,31.55710823]
[1724935131895,6.8353,146.3,146.22,31.55710823]
[1724935132704,15.806,146.31,146.24,31.55710823]
[1724935132912,15.806,146.31,146.26,31.55710823]
[1724935133117,15.806,146.31,146.27,0.4207839]
[1724935133524,6.42,146.32,146.27,0.6424819]
[1724935134116,6.42,146.32,146.26,31.55710823]
[1724935134301,6.42,146.32,146.25,20.0]
[1724935134506,6.42,146.32,146.24,31.55710823]
[1724935134703,6.42,146.32,146.25,20.0]
[1724935135414,0.25098,146.31,146.25,20.0]
[1724935135613,45.25098,146.31,146.23,20.0]
[1724935136024,52.08578,146.31,146.23,20.0]
[1724935137131,6.8352,146.3,146.22,31.55710823]
[1724935137333,6.8362,146.28,146.2,31.55710823]
[1724935137512,6.8362,146.28,146.18,31.55710823]
[1724935137710,0.25098,146.27,146.18,31.55710823]
[1724935138124,0.25098,146.27,146.2,31.55710823]
[1724935138321,0.12549,146.26,146.2,31.55710823]
[1724935138534,0.25098,146.28,146.2,31.55710823]
[1724935138732,0.25098,146.28,146.21,20.0]
[1724935141210,0.25098,146.28,146.18,31.55710823]
[1724935141211,7.08718,146.28,146.19,20.0]
[1724935141428,45.0,146.27,146.19,20.0]
[1724935141618,0.25098,146.28,146.19,20.0]
[1724935141619,0.12549,146.26,146.19,20.0]
[1724935141823,13.2665,146.27,146.18,31.55710823]
[1724935142143,6.96269,146.26,146.16,31.55710823]
[1724935142331,0.12549,146.25,146.16,31.55710823]
[1724935142639,0.12549,146.25,146.14,31.55710823]
[1724935143331,6.96309,146.25,146.14,31.55710823]
[1724935143640,45.12549,146.24,146.15,20.0]
[1724935143837,0.12549,146.23,146.15,20.0]
[1724935144621,16.55929,146.23,146.14,31.55710823]
[1724935144823,6.3171,146.21,146.13,16.6015]
[1724935145016,0.25098,146.2,146.12,31.55710823]
[1724935146122,0.25098,146.2,146.14,31.55710823]
[1724935146319,0.12549,146.2,146.15,20.0]
[1724935146518,6.3171,146.21,146.15,20.0]
[1724935146736,16.4338,146.23,146.16,31.55710823]
[1724935147041,16.4338,146.23,146.17,20.0]
[1724935149234,0.25098,146.22,146.15,20.0]
[1724935149632,45.25098,146.22,146.13,20.0]
[1724935151750,45.25098,146.22,146.1,22.2669]
[1724935151751,6.84,146.2,146.1,22.2669]
[1724935152036,0.25098,146.19,146.1,53.82400823]
[1724935152241,0.25098,146.19,146.11,3.1883384]
[1724935152448,0.25098,146.19,146.1,53.82400823]
[1724935152631,0.12549,146.19,146.12,31.55710823]
[1724935152942,6.8395,146.21,146.12,31.55710823]
[1724935152943,0.25098,146.2,146.13,0.68288735]
[1724935153138,0.25098,146.2,146.12,31.55710823]
[1724935153345,45.25098,146.2,146.13,20.0]
[1724935155641,13.3481,146.19,146.1,47.72030823]
[1724935155942,16.2298,146.17,146.11,20.0]
[1724935156137,45.12549,146.16,146.09,20.0]
[1724935156361,52.09318,146.16,146.06,31.55710823]
[1724935156528,6.844,146.12,146.02,54.22720823]
[1724935156852,56.5076,146.15,146.03,3.19004267]
[1724935156853,0.25098,146.11,146.03,3.19004267]
[1724935157024,16.48078,146.11,146.04,31.55710823]
[1724935158228,16.48078,146.11,146.05,20.0]
[1724935158745,29.4215,146.15,146.05,20.0]
[1724935159046,45.25098,146.14,146.05,20.0]
[1724935159445,52.09378,146.14,146.05,20.0]
[1724935160238,52.09378,146.14,146.03,20.0]
[1724935160746,6.844,146.12,146.02,31.55710823]
[1724935160932,45.12549,146.11,146.02,31.55710823]
[1724935161132,0.12549,146.1,146.02,31.55710823]
[1724935161951,0.12549,146.11,146.04,31.55710823]
[1724935162147,45.25098,146.12,146.04,31.55710823]
[1724935162528,22.5788,146.15,146.04,31.55710823]
[1724935162730,72.5788,146.15,146.05,20.0]
[1724935163055,6.843,146.14,146.05,20.0]
[1724935163345,6.8435,146.13,146.05,20.0]
[1724935163549,6.8435,146.13,146.03,20.0]
[1724935163734,45.12549,146.12,146.03,20.0]
[1724935163939,45.25098,146.12,146.03,20.0]
[1724935164642,76.80808823,146.12,146.0,31.55710823]
[1724935164953,29.2875,146.11,146.0,31.55710823]
[1724935165130,45.25098,146.1,146.0,31.55710823]
[1724935165336,45.25098,146.1,146.02,31.55710823]
[1724935166034,45.25098,146.1,146.03,20.0]
[1724935167247,45.25098,146.1,146.01,20.0]
[1724935167858,6.8452,146.09,146.01,20.0]
[1724935168031,45.25098,146.08,146.0,20.0]
[1724935168231,45.25098,146.08,146.0,51.55710823]
[1724935168431,0.25098,146.08,146.0,51.55710823]
[1724935172649,22.4433,146.11,146.02,31.55710823]
[1724935173551,22.4433,146.11,146.04,31.55710823]
[1724935173953,22.4433,146.11,146.06,31.55710823]
[1724935174658,22.554,146.16,146.08,31.55710823]
[1724935175351,22.554,146.16,146.09,20.0]
[1724935176759,0.25098,146.15,146.09,20.0]
[1724935177052,0.25098,146.15,146.04,31.55710823]
[1724935177356,0.25098,146.15,146.05,20.0]
[1724935177555,45.25098,146.15,146.05,20.0]
[1724935178334,45.25098,146.15,146.06,31.55710823]
[1724935178535,45.25098,146.15,146.07,20.0]
[1724935179152,22.554,146.16,146.07,20.0]
[1724935179354,22.554,146.16,146.08,31.55710823]
[1724935179533,22.554,146.16,146.09,20.0]
[1724935181259,22.554,146.16,146.06,31.55710823]
[1724935181438,22.554,146.16,146.07,65.0]
[1724935182160,22.554,146.16,146.08,31.55710823]
[1724935182341,22.554,146.16,146.09,20.0]
[1724935182951,0.25098,146.15,146.09,20.0]
[1724935184645,0.25098,146.15,146.07,20.0]
[1724935186366,45.25098,146.15,146.07,20.0]
[1724935186564,45.25098,146.15,146.08,1.36885913]
[1724935186757,45.25098,146.15,146.07,20.0]
[1724935186962,45.25098,146.15,146.04,31.55710823]
[1724935187156,45.25098,146.15,146.05,20.0]
[1724935187970,76.80808823,146.15,146.05,20.0]
[1724935188281,83.65068823,146.15,146.05,20.0]
[1724935188458,50.0,146.14,146.04,31.55710823]
[1724935188658,52.09458,146.13,146.02,47.09610823]
[1724935189867,52.09458,146.13,146.03,20.0]
[1724935190669,22.5279,146.12,146.03,20.0]
[1724935190975,45.25098,146.11,146.03,20.0]
[1724935193274,22.5279,146.12,146.03,20.0]
[1724935193583,22.5279,146.12,146.04,76.55710823]
[1724935193873,22.5279,146.12,146.05,20.0]
[1724935194657,0.25098,146.11,146.05,20.0]
[1724935195854,22.5279,146.12,146.05,20.0]
[1724935196061,22.5279,146.12,146.08,31.55710823]
[1724935198394,16.4109,146.12,146.08,31.55710823]
[1724935199583,6.0433,146.15,146.08,31.55710823]
[1724935200873,0.25098,146.14,146.02,15.539]
[1724935201184,16.5498,146.13,146.05,31.55710823]
[1724935201483,16.5498,146.13,146.06,3.19008236]
[1724935201660,16.5498,146.13,146.07,31.55710823]
[1724935201856,16.5498,146.13,146.08,3.19008236]
[1724935202468,16.5498,146.13,146.08,23.19008236]
[1724935203189,16.5498,146.13,146.08,3.19008236]
[1724935203481,16.5498,146.13,146.06,23.19008236]
[1724935203787,16.5498,146.13,146.06,29.07585659]
[1724935205785,0.25098,146.12,146.06,29.07585659]
[1724935206285,16.5498,146.13,146.06,29.07585659]
[1724935206674,16.5498,146.13,146.06,20.0]
[1724935206993,16.5498,146.13,146.06,29.07586311]
[1724935207482,16.5498,146.13,146.07,32.23706549]
[1724935207690,16.5498,146.13,146.08,3.86991011]
[1724935207868,16.5498,146.13,146.08,3.1899994]
[1724935208486,6.0433,146.15,146.09,31.55710823]
[1724935209584,6.0433,146.15,146.1,20.0]
[1724935209888,15.7253,146.17,146.11,31.55710823]
[1724935211302,6.1037,146.19,146.13,31.55710823]
[1724935211470,15.7625,146.21,146.15,31.55710823]
[1724935211792,15.7625,146.21,146.16,20.0]
[1724935212465,15.7625,146.21,146.14,20.0]
[1724935216271,0.12549,146.2,146.14,20.0]
[1724935216472,45.25098,146.2,146.14,20.0]
[1724935216789,6.319,146.19,146.11,31.55710823]
[1724935216966,0.25098,146.18,146.11,31.55710823]
[1724935217986,0.25098,146.18,146.12,20.0]
[1724935218377,6.319,146.19,146.12,20.0]
[1724935218584,6.319,146.19,146.13,31.55710823]
[1724935218902,6.319,146.19,146.14,20.0]
[1724935220687,15.7625,146.21,146.15,31.55710823]
[1724935220890,15.7625,146.21,146.16,20.0]
[1724935223090,15.7625,146.21,146.14,20.0]
[1724935223275,45.25098,146.2,146.14,20.0]
[1724935223473,0.25098,146.2,146.12,20.0]
[1724935223889,45.25098,146.2,146.12,20.0]
[1724935224090,0.25098,146.2,146.12,20.0]
[1724935224486,15.7625,146.21,146.12,20.0]
[1724935224698,15.7625,146.21,146.13,31.55710823]
[1724935224900,15.7625,146.21,146.14,20.0]
[1724935229404,15.7625,146.21,146.15,31.55710823]
[1724935229586,15.7625,146.21,146.16,20.0]
[1724935231397,0.25098,146.2,146.13,12.60658796]
[1724935231576,0.25098,146.2,146.14,20.0]
[1724935232277,15.7625,146.21,146.15,12.60658796]
[1724935232806,0.12549,146.2,146.15,12.60658796]
[1724935233495,15.7625,146.21,146.15,12.60658796]
[1724935234003,15.7625,146.21,146.14,20.0]
[1724935234004,22.6024,146.21,146.14,20.0]
[1724935234302,45.25098,146.2,146.14,12.60658796]
[1724935234509,0.25098,146.2,146.15,20.0]
[1724935235204,0.12549,146.2,146.15,20.0]
[1724935235507,15.7625,146.21,146.15,20.0]
[1724935240584,15.7625,146.21,146.16,12.60658796]
[1724935241792,0.12549,146.2,146.15,20.0]
[1724935241988,0.25098,146.2,146.15,12.60658796]
[1724935242191,0.25098,146.2,146.16,20.0]
[1724935244301,0.25098,146.2,146.15,12.60658796]
[1724935245899,0.25098,146.2,146.14,12.60658796]
[1724935246106,0.25098,146.2,146.15,20.0]
[1724935247711,45.25098,146.2,146.15,20.0]
[1724935247895,52.09088,146.2,146.14,12.60658796]
[1724935248100,52.09088,146.2,146.15,20.0]
[1724935248303,45.25098,146.2,146.15,20.0]
[1724935249806,52.09088,146.2,146.1,5.88342251]
[1724935250005,52.09088,146.2,146.12,12.60658796]
[1724935250006,45.25098,146.2,146.12,12.60658796]
[1724935250196,6.8407,146.19,146.13,20.0]
[1724935250396,0.25098,146.18,146.13,20.0]
[1724935251809,0.25098,146.19,146.13,20.0]
[1724935252389,0.25098,146.19,146.13,23.18863894]
[1724935254001,7.09148,146.19,146.13,23.18863894]
[1724935254403,0.25098,146.19,146.13,23.18863894]
[1724935259193,0.25098,146.19,146.14,3.18844]
[1724935259613,22.602,146.21,146.14,15.79502796]
[1724935260309,15.7625,146.21,146.14,15.79502796]
[1724935260996,15.7625,146.21,146.15,20.0]
[1724935261898,0.25098,146.2,146.15,20.0]
[1724935262102,15.7625,146.21,146.15,20.0]
[1724935263121,0.25098,146.2,146.15,20.0]
[1724935263318,15.7625,146.21,146.15,20.0]
[1724935264318,0.25098,146.2,146.15,20.0]
[1724935266599,45.25098,146.2,146.15,20.0]
[1724935267014,15.7625,146.21,146.16,12.60658796]
[1724935267404,6.0202,146.23,146.16,12.60658796]
[1724935267607,0.12549,146.22,146.16,12.60658796]
[1724935267812,6.0202,146.23,146.16,12.60658796]
[1724935268524,15.3033,146.24,146.18,12.60658796]
[1724935268704,13.56810234,146.27,146.18,12.60658796]
[1724935268900,13.56810234,146.27,146.16,12.60658796]
[1724935268901,6.067,146.27,146.2,12.60658796]
[1724935270401,16.0044,146.28,146.2,17.15983262]
[1724935270603,16.0044,146.28,146.21,1.36757575]
[1724935270809,16.0044,146.28,146.21,20.0]
[1724935271211,16.0044,146.28,146.2,12.60658796]
[1724935271410,16.0044,146.28,146.21,20.0]
[1724935271615,12.60658796,146.26,146.2,3.18493874]
[1724935271825,0.12549,146.25,146.18,20.0]
[1724935272313,7.08858,146.25,146.18,20.0]
[1724935272931,45.0,146.24,146.18,20.0]
[1724935273224,0.25098,146.23,146.18,20.0]
[1724935273919,6.5673,146.26,146.21,12.60658796]
[1724935274116,0.12549,146.25,146.21,12.60658796]
[1724935274506,0.12549,146.25,146.19,12.60658796]
[1724935275126,7.08858,146.25,146.18,20.0]
[1724935275322,0.25098,146.25,146.18,20.0]
[1724935276919,0.12549,146.25,146.18,20.0]
[1724935277228,13.1653,146.3,146.22,12.60658796]
[1724935277433,13.1653,146.3,146.23,0.42019966]
[1724935277609,13.1653,146.3,146.2,27.69818796]
[1724935277924,12.60658796,146.29,146.21,20.0]
[1724935278323,6.33,146.3,146.22,12.60658796]
[1724935278514,12.60658796,146.31,146.22,12.60658796]
[1724935278832,19.44158796,146.31,146.22,12.60658796]
[1724935279030,12.60658796,146.31,146.23,20.0]
[1724935279336,22.6874,146.32,146.24,12.60658796]
[1724935279845,22.6874,146.32,146.23,20.0]
[1724935279846,19.44138796,146.31,146.23,20.0]
[1724935280210,6.8348,146.31,146.23,20.0]
[1724935280411,15.8529,146.32,146.24,12.60658796]
[1724935280622,6.8343,146.33,146.24,12.60658796]
[1724935280812,12.60658796,146.32,146.24,12.60658796]
[1724935281028,12.60658796,146.32,146.23,20.0]
[1724935281343,6.2107,146.34,146.23,20.0]
[1724935281528,12.60658796,146.3,146.23,20.0]
[1724935282536,19.44188796,146.3,146.2,15.0916]
[1724935282839,45.25098,146.29,146.2,15.0916]
[1724935283046,12.60658796,146.26,146.2,15.0916]
[1724935283339,12.60658796,146.28,146.2,15.0916]
[1724935283510,0.25098,146.27,146.2,15.0916]
[1724935283925,12.60658796,146.26,146.2,15.0916]
[1724935284127,0.12549,146.25,146.2,15.0916]
[1724935284341,0.25098,146.25,146.2,15.0916]
[1724935284640,12.60658796,146.24,146.16,16.0319]
[1724935285438,6.8366,146.28,146.19,12.60658796]
[1724935285637,45.0,146.27,146.19,12.60658796]
[1724935285812,0.25098,146.26,146.19,12.60658796]
[1724935286327,0.25098,146.26,146.16,28.63848796]
[1724935286640,0.25098,146.26,146.17,65.0]
[1724935286822,0.25098,146.26,146.18,12.60658796]
[1724935287015,0.25098,146.26,146.19,20.0]
[1724935287415,12.85756796,146.26,146.19,20.0]
[1724935287843,12.60658796,146.24,146.16,28.63848796]
[1724935288016,6.8376,146.25,146.17,20.0]
[1724935288217,0.25098,146.26,146.18,12.60658796]
[1724935289531,7.08818,146.26,146.17,20.0]
[1724935289840,6.429,146.29,146.22,12.60658796]
[1724935290020,12.60658796,146.32,146.24,12.60658796]
[1724935290418,19.44098796,146.32,146.22,28.85598796]
[1724935290639,12.60658796,146.31,146.23,20.0]
[1724935291024,19.44138796,146.31,146.23,20.0]
[1724935291224,12.60658796,146.29,146.23,20.0]
[1724935291455,6.8345,146.32,146.24,12.60658796]
[1724935291746,12.60658796,146.32,146.23,20.0]
[1724935292051,19.44098796,146.32,146.23,20.0]
[1724935292718,45.25098,146.31,146.23,20.0]
[1724935293350,0.12549,146.31,146.23,20.0]
[1724935293644,6.6656,146.33,146.23,32.60658796]
[1724935293645,0.12549,146.32,146.23,32.60658796]
[1724935293831,19.27218796,146.33,146.23,32.60658796]
[1724935294734,45.0,146.32,146.25,12.60658796]
[1724935295119,45.0,146.32,146.23,32.60658796]
[1724935295537,12.60658796,146.31,146.23,32.60658796]
[1724935296041,0.25098,146.3,146.23,32.60658796]
[1724935296919,12.60658796,146.29,146.22,16.2494]
[1724935297140,12.60658796,146.27,146.19,15.4574]
[1724935297650,45.25098,146.28,146.19,15.4574]
[1724935297818,45.25098,146.28,146.2,12.60658796]
[1724935298245,6.8348,146.31,146.2,12.60658796]
[1724935298438,57.73207796,146.3,146.2,12.60658796]
[1724935298645,65.1621,146.34,146.23,12.60658796]
[1724935298945,72.6389,146.4,146.31,12.60658796]
[1724935299146,6.1195,146.4,146.25,16.3477]
[1724935299444,6.1195,146.4,146.26,65.25098]
[1724935299649,6.1195,146.4,146.31,12.60658796]
[1724935299853,12.60658796,146.37,146.26,65.0]